[Event "ROU-ch Men 2018"]
[Site "Olanesti"]
[Date "2018.05.19"]
[Round "6"]
[White "Pislariu, Stefanel-Vasilica"]
[Black "Morariu, Daniel"]
[Result "0-1"]
[ECO "A88"]
[WhiteElo "1863"]
[BlackElo "1656"]
[Annotator "NA"]
[PlyCount "80"]
[EventDate "2018.??.??"]
[EventType "swiss"]
[EventCountry "ROU"]
[SourceTitle "playchess.com"]
[Source "ChessBase"]
[SourceQuality "1"]
[TimeControl "40/5400+30:1800+30"]

1. c4 {[%emt 0:01:40]} f5 {[%emt 0:01:02]} 2. Nf3 {[%emt 0:00:28]} Nf6 {[%emt 0:00:22]} 3. g3 {[%emt 0:00:32]} d6 {[%emt 0:01:15]} 4. d4 {[%emt 0:00:23]} g6 {[%emt 0:00:20]} 5. Bg2 {[%emt 0:00:55]} Bg7 {[%emt 0:00:34]} 6. Nc3 {[%emt 0:00:46]} c6 {[%emt 0:00:43]} 7. O-O {[%emt 0:01:37]} O-O {[%emt 0:00:07]} 8. Bg5 {[%emt 0:03:50]} Be6 {[%emt 0:06:57]} 9. Qb3 {[%emt 0:02:27]} b5 {[%emt 0:01:34]} 10. d5 {[%emt 0:04:45]} Bf7 {[%emt 0:05:58]} 11. cxb5 {[%emt 0:06:35]} Nxd5 {[%emt 0:04:36]} 12. Qc2 {[%emt 0:02:43]} Qc7 {[%emt 0:10:40]} 13. Rfd1 {[%emt 0:06:23]} Nxc3 {[%emt 0:03:02]} 14. bxc3 {[%emt 0:00:07]} a6 {[%emt 0:10:52]} 15. Nd4 {[%emt 0:03:26]} Bxd4 {[%emt 0:18:40]} 16. cxd4 {[%emt 0:00:43]} axb5 {[%emt 0:00:15]} 17. d5 {[%emt 0:03:56]} Be8 {[%emt 0:00:39]} 18. dxc6 {[%emt 0:04:18]} e6 {[%emt 0:07:50]} 19. Qb3 {[%emt 0:04:21]} d5 {[%emt 0:01:21]} 20. Qxb5 {[%emt 0:05:07]} Qxc6 {[%emt 0:02:09]} 21. Qb2 {[%emt 0:01:30]} Nd7 {[%emt 0:01:09]} 22. Rdc1 {[%emt 0:02:38]} Qd6 {[%emt 0:03:54]} 23. Bh6 {[%emt 0:03:02]} Rf7 {[%emt 0:01:20]} 24. a4 {[%emt 0:01:38]} Nf6 {[%emt 0:01:27]} 25. a5 {[%emt 0:01:02]} e5 {[%emt 0:00:59]} 26. Be3 {[%emt 0:02:53]} Ne4 {[%emt 0:01:24]} 27. Bxe4 {[%emt 0:02:10]} fxe4 {[%emt 0:00:26]} 28. Qb6 {[%emt 0:00:15]} Qxb6 {[%emt 0:01:04]} 29. Bxb6 {[%emt 0:00:06]} Bb5 {[%emt 0:00:16]} 30. Rc5 {[%emt 0:00:35]} Bc4 {[%emt 0:01:06]} 31. Rxc4 {[%emt 0:06:49]} dxc4 {[%emt 0:01:22]} 32. a6 {[%emt 0:00:08]} Rf6 {[%emt 0:00:53]} 33. Bc7 {[%emt 0:00:47]} Rfxa6 {[%emt 0:00:35]} 34. Rxa6 {[%emt 0:00:20]} Rxa6 {[%emt 0:00:04]} 35. Bxe5 {[%emt 0:00:06]} Kf7 {[%emt 0:00:33]} 36. Kf1 {[%emt 0:00:16]} Ke6 {[%emt 0:00:33]} 37. Bd4 {[%emt 0:00:07]} Kd5 {[%emt 0:00:45]} 38. e3 {[%emt 0:00:13]} Ra3 {[%emt 0:01:12]} 39. Ke1 {[%emt 0:00:16]} Rd3 {[%emt 0:00:09]} 40. Bb2 {[%emt 0:00:00]} c3 {[%emt 0:00:24]} 0-1

[Event "ROU-ch Men 2018"]
[Site "Olanesti"]
[Date "2018.05.19"]
[Round "6"]
[White "Stan, Andrei-Mihaita"]
[Black "Neagu, Liviu"]
[Result "1-0"]
[ECO "E85"]
[WhiteElo "1860"]
[BlackElo "2025"]
[Annotator "NA"]
[PlyCount "115"]
[EventDate "2018.??.??"]
[EventType "swiss"]
[EventCountry "ROU"]
[SourceTitle "playchess.com"]
[Source "ChessBase"]
[SourceQuality "1"]
[TimeControl "40/5400+30:1800+30"]

1. d4 {[%emt 0:00:00]} Nf6 {[%emt 0:00:01]} 2. c4 {[%emt 0:00:00]} g6 {[%emt 0:00:01]} 3. Nc3 {[%emt 0:00:33]} Bg7 {[%emt 0:00:02]} 4. e4 {[%emt 0:00:21]} d6 {[%emt 0:00:01]} 5. f3 {[%emt 0:00:42]} O-O {[%emt 0:00:02]} 6. Be3 {[%emt 0:00:40]} e5 {[%emt 0:00:03]} 7. Nge2 {[%emt 0:01:47]} Nc6 {[%emt 0:01:24]} 8. d5 {[%emt 0:01:15]} Ne7 {[%emt 0:00:02]} 9. Qd2 {[%emt 0:00:57]} Nd7 {[%emt 0:02:26]} 10. g4 {[%emt 0:00:54]} a6 {[%emt 0:00:40]} 11. h4 {[%emt 0:08:03]} f5 {[%emt 0:01:17]} 12. gxf5 {[%emt 0:01:59]} gxf5 {[%emt 0:00:02]} 13. h5 {[%emt 0:05:53]} Rf7 {[%emt 0:08:58]} 14. h6 {[%emt 0:05:52]} Bf6 {[%emt 0:01:34]} 15. Bh3 {[%emt 0:06:11]} Bh4+ {[%emt 0:05:05]} 16. Bf2 {[%emt 0:00:23]} Bxf2+ {[%emt 0:03:59]} 17. Kxf2 {[%emt 0:00:06]} Nf8 {[%emt 0:00:43]} 18. Qg5+ {[%emt 0:14:03]} Nfg6 {[%emt 0:00:29]} 19. Ke1 {[%emt 0:21:34]} Bd7 {[%emt 0:13:13]} 20. Qe3 {[%emt 0:17:06]} Qf8 {[%emt 0:06:28]} 21. Kd2 {[%emt 0:01:43]} b5 {[%emt 0:01:49]} 22. cxb5 {[%emt 0:05:48]} axb5 {[%emt 0:00:14]} 23. b4 {[%emt 0:00:27]} Nc8 {[%emt 0:04:37]} 24. Kc2 {[%emt 0:01:05]} Nb6 {[%emt 0:00:25]} 25. Qg5 {[%emt 0:02:14]} Rc8 {[%emt 0:04:30]} 26. Ng3 {[%emt 0:01:04]} fxe4 {[%emt 0:03:35]} 27. Bxd7 {[%emt 0:01:20]} Nxd7 {[%emt 0:00:02]} 28. Ngxe4 {[%emt 0:00:57]} c6 {[%emt 0:02:12]} 29. Qd2 {[%emt 0:00:38]} c5 {[%emt 0:01:35]} 30. Nxb5 {[%emt 0:00:23]} cxb4+ {[%emt 0:00:09]} 31. Kb2 {[%emt 0:00:12]} Rxf3 {[%emt 0:03:48]} 32. Rag1 {[%emt 0:01:11]} Nc5 {[%emt 0:01:34]} 33. Nbxd6 {[%emt 0:00:21]} Nxe4 {[%emt 0:01:53]} 34. Nxe4 {[%emt 0:00:22]} Rc4 {[%emt 0:00:14]} 35. d6 {[%emt 0:00:45]} Rd4 {[%emt 0:05:38]} 36. Qc2 {[%emt 0:00:24]} Rf4 {[%emt 0:04:29]} 37. Re1 {[%emt 0:00:36]} Qa8 {[%emt 0:03:31]} 38. Ng5 {[%emt 0:00:36]} Rxd6 {[%emt 0:13:57]} 39. Rd1 {[%emt 0:00:22]} Rdf6 {[%emt 0:03:49]} 40. Qb3+ {[%emt 0:00:00]} Kh8 {[%emt 0:00:52]} 41. Ka1 {[%emt 0:02:51]} Qg8 {[%emt 0:09:42]} 42. Qxg8+ {[%emt 0:06:02]} Kxg8 {[%emt 0:00:02]} 43. Rd7 {[%emt 0:00:09]} Nf8 {[%emt 0:02:42]} 44. Rg7+ {[%emt 0:00:17]} Kh8 {[%emt 0:00:02]} 45. Rg1 {[%emt 0:01:07]} Rg6 {[%emt 0:04:05]} 46. Kb2 {[%emt 0:02:34]} Rxg7 {[%emt 0:06:59]} 47. hxg7+ {[%emt 0:00:14]} Kxg7 {[%emt 0:00:01]} 48. Ne6+ {[%emt 0:00:11]} Kf7 {[%emt 0:00:19]} 49. Nxf4 {[%emt 0:00:25]} exf4 {[%emt 0:00:02]} 50. Kb3 {[%emt 0:03:00]} Kf6 {[%emt 0:02:23]} 51. Kxb4 {[%emt 0:00:25]} h5 {[%emt 0:01:26]} 52. a4 {[%emt 0:02:52]} Kf5 {[%emt 0:03:14]} 53. a5 {[%emt 0:00:22]} Ne6 {[%emt 0:00:06]} 54. Rc1 {[%emt 0:00:45]} f3 {[%emt 0:04:27]} 55. a6 {[%emt 0:00:11]} f2 {[%emt 0:01:12]} 56. a7 {[%emt 0:00:12]} Nf4 {[%emt 0:01:04]} 57. Ka5 {[%emt 0:00:54]} Nd3 {[%emt 0:01:36]} 58. Rf1 {[%emt 0:00:06]} 1-0

[Event "ROU-ch Men 2018"]
[Site "Olanesti"]
[Date "2018.05.19"]
[Round "6"]
[White "Cotruta, Alexandru-Mihai"]
[Black "Sava, Bogdan"]
[Result "1/2-1/2"]
[ECO "D97"]
[WhiteElo "1776"]
[BlackElo "2099"]
[Annotator "NA"]
[PlyCount "56"]
[EventDate "2018.??.??"]
[EventType "swiss"]
[EventCountry "ROU"]
[SourceTitle "playchess.com"]
[Source "ChessBase"]
[SourceQuality "1"]
[TimeControl "40/5400+30:1800+30"]

1. d4 {[%emt 0:00:00]} Nf6 {[%emt 0:00:08]} 2. c4 {[%emt 0:00:00]} g6 {[%emt 0:00:25]} 3. Nc3 {[%emt 0:00:00]} d5 {[%emt 0:00:53]} 4. Nf3 {[%emt 0:00:21]} Bg7 {[%emt 0:00:32]} 5. Qb3 {[%emt 0:00:34]} dxc4 {[%emt 0:02:09]} 6. Qxc4 {[%emt 0:00:05]} O-O {[%emt 0:01:19]} 7. e4 {[%emt 0:00:51]} Na6 {[%emt 0:05:22]} 8. e5 {[%emt 0:07:23]} Nd7 {[%emt 0:01:25]} 9. e6 {[%emt 0:19:01]} fxe6 {[%emt 0:06:16]} 10. Qxe6+ {[%emt 0:01:25]} Kh8 {[%emt 0:00:02]} 11. Ng5 {[%emt 0:06:01]} Ne5 {[%emt 0:03:42]} 12. Qb3 {[%emt 0:01:19]} Qxd4 {[%emt 0:01:25]} 13. Be3 {[%emt 0:00:36]} Qb4 {[%emt 0:04:40]} 14. Bxa6 {[%emt 0:01:38]} Qxb3 {[%emt 0:03:18]} 15. axb3 {[%emt 0:00:05]} bxa6 {[%emt 0:00:05]} 16. O-O {[%emt 0:01:00]} Nd3 {[%emt 0:08:03]} 17. Nd5 {[%emt 0:01:48]} Rb8 {[%emt 0:10:46]} 18. Nxc7 {[%emt 0:01:32]} Bxb2 {[%emt 0:01:08]} 19. Ra2 {[%emt 0:10:43]} Be5 {[%emt 0:09:26]} 20. Nxa6 {[%emt 0:01:38]} Rxb3 {[%emt 0:00:57]} 21. Bxa7 {[%emt 0:03:48]} Bb7 {[%emt 0:11:29]} 22. Nc5 {[%emt 0:01:16]} Nxc5 {[%emt 0:01:01]} 23. Bxc5 {[%emt 0:00:07]} Bf6 {[%emt 0:00:19]} 24. Ne6 {[%emt 0:02:13]} Rc8 {[%emt 0:00:34]} 25. Ra7 {[%emt 0:01:54]} Kg8 {[%emt 0:08:04]} 26. Be3 {[%emt 0:02:47]} Bd5 {[%emt 0:01:37]} 27. Nf4 {[%emt 0:01:37]} Be4 {[%emt 0:03:18]} 28. h3 {[%emt 0:01:22]} Ra8 {[%emt 0:03:16]} 1/2-1/2

[Event "ROU-ch Men 2018"]
[Site "Olanesti"]
[Date "2018.05.20"]
[Round "7"]
[White "Manea, Alexandru"]
[Black "Raducanu, Andrei-Augustin"]
[Result "1-0"]
[ECO "A80"]
[WhiteElo "2402"]
[BlackElo "2063"]
[Annotator "ChessBase"]
[PlyCount "65"]
[EventDate "2018.??.??"]
[EventType "swiss"]
[EventCountry "ROU"]
[SourceTitle "playchess.com"]
[Source "ChessBase"]
[SourceQuality "1"]
[TimeControl "40/5400+30:1800+30"]

1. d4 {[%emt 0:34:08]} f5 {[%emt 0:00:08]} 2. Nc3 {[%emt 0:00:13]} Nf6 {[%emt 0:00:06]} 3. h4 {[%emt 0:00:07]} e6 {[%emt 0:00:21]} 4. h5 {[%emt 0:00:08]} b6 {[%emt 0:01:11]} 5. a3 {[%emt 0:09:11]} Bb7 {[%emt 0:00:19]} 6. Nf3 {[%emt 0:00:11]} d6 {[%emt 0:07:12]} 7. Bf4 {[%emt 0:00:19]} Qd7 {[%emt 0:07:55]} 8. e3 {[%emt 0:00:21]} Nc6 {[%emt 0:01:17]} 9. Bc4 {[%emt 0:00:53]} Ne7 {[%emt 0:04:22]} 10. Bg5 {[%emt 0:07:32]} Nfd5 {[%emt 0:07:14]} 11. Ne2 {[%emt 0:00:47]} Ng8 {[%emt 0:03:29]} 12. Ba2 {[%emt 0:01:07]} Be7 {[%emt 0:00:26]} 13. c4 {[%emt 0:00:13]} Ndf6 {[%emt 0:00:37]} 14. Nf4 {[%emt 0:00:58]} Ne4 {[%emt 0:19:17]} 15. Bxe7 {[%emt 0:01:04]} Nxe7 {[%emt 0:00:05]} 16. d5 {[%emt 0:00:19]} e5 {[%emt 0:02:21]} 17. Ne6 {[%emt 0:00:18]} Ng8 {[%emt 0:00:30]} 18. Bb3 {[%emt 0:01:58]} Qe7 {[%emt 0:11:31]} 19. Ba4+ {[%emt 0:02:12]} Kf7 {[%emt 0:00:06]} 20. Bc2 {[%emt 0:00:23]} Ngf6 {[%emt 0:03:18]} 21. Nfg5+ {[%emt 0:04:52]} Kg8 {[%emt 0:00:29]} 22. Nxe4 {[%emt 0:00:18]} Nxe4 {[%emt 0:00:45]} 23. Bxe4 {[%emt 0:09:45]} fxe4 {[%emt 0:00:04]} 24. h6 {[%emt 0:00:04]} g6 {[%emt 0:00:27]} 25. Qg4 {[%emt 0:00:51]} c6 {[%emt 0:05:57]} 26. Rd1 {[%emt 0:03:01]} Rc8 {[%emt 0:08:47]} 27. O-O {[%emt 0:02:16]} Ba6 {[%emt 0:04:30]} 28. Ng5 {[%emt 0:02:05]} cxd5 {[%emt 0:02:56]} 29. cxd5 {[%emt 0:04:14]} Rc2 {[%emt 0:02:23]} 30. Rc1 {[%emt 0:01:16]} Rc5 {[%emt 0:01:23]} 31. b4 {[%emt 0:00:54]} Rc4 {[%emt 0:03:14]} 32. Rxc4 {[%emt 0:00:10]} Bxc4 {[%emt 0:00:02]} 33. Qc8+ {[%emt 0:00:06]} 1-0

[Event "ROU-ch Men 2018"]
[Site "Olanesti"]
[Date "2018.05.20"]
[Round "7"]
[White "Posedaru, Bogdan"]
[Black "Secheres, Adrian-Simion"]
[Result "0-1"]
[ECO "E81"]
[WhiteElo "2307"]
[BlackElo "2404"]
[Annotator "ChessBase"]
[PlyCount "60"]
[EventDate "2018.??.??"]
[EventType "swiss"]
[EventCountry "ROU"]
[SourceTitle "playchess.com"]
[Source "ChessBase"]
[SourceQuality "1"]
[TimeControl "40/5400+30:1800+30"]

1. d4 {[%emt 0:01:04]} Nf6 {[%emt 0:00:19]} 2. c4 {[%emt 0:00:05]} g6 {[%emt 0:00:25]} 3. Nc3 {[%emt 0:00:05]} Bg7 {[%emt 0:00:11]} 4. e4 {[%emt 0:00:04]} d6 {[%emt 0:00:06]} 5. f3 {[%emt 0:00:04]} O-O {[%emt 0:00:28]} 6. Nge2 {[%emt 0:00:09]} c5 {[%emt 0:00:26]} 7. d5 {[%emt 0:00:24]} a6 {[%emt 0:02:21]} 8. a4 {[%emt 0:01:49]} e6 {[%emt 0:01:02]} 9. Ng3 {[%emt 0:00:54]} exd5 {[%emt 0:00:38]} 10. cxd5 {[%emt 0:00:06]} h5 {[%emt 0:04:43]} 11. Bg5 {[%emt 0:10:32]} Qb6 {[%emt 0:09:01]} 12. Qd2 {[%emt 0:00:40]} Re8 {[%emt 0:05:56]} 13. Be2 {[%emt 0:11:13]} Nh7 {[%emt 0:01:48]} 14. Be3 {[%emt 0:07:30]} h4 {[%emt 0:01:54]} 15. Nf1 {[%emt 0:00:04]} Nd7 {[%emt 0:03:48]} 16. Qc2 {[%emt 0:02:09]} Qd8 {[%emt 0:10:01]} 17. Nd2 {[%emt 0:03:57]} f5 {[%emt 0:05:03]} 18. O-O {[%emt 0:03:58]} f4 {[%emt 0:24:17]} 19. Bf2 {[%emt 0:09:58]} Ne5 {[%emt 0:02:28]} 20. Nc4 {[%emt 0:00:24]} Nxc4 {[%emt 0:01:00]} 21. Bxc4 {[%emt 0:00:04]} Be5 {[%emt 0:00:57]} 22. Rfd1 {[%emt 0:12:38]} Qg5 {[%emt 0:05:38]} 23. Kf1 {[%emt 0:00:32]} h3 {[%emt 0:01:40]} 24. gxh3 {[%emt 0:01:19]} Qh5 {[%emt 0:00:11]} 25. h4 {[%emt 0:15:10]} Qxf3 {[%emt 0:02:13]} 26. Ne2 {[%emt 0:06:51]} Nf6 {[%emt 0:03:41]} 27. Ng1 {[%emt 0:02:26]} Qh1 {[%emt 0:00:51]} 28. Ra3 {[%emt 0:01:25]} Nxe4 {[%emt 0:04:51]} 29. Re1 {[%emt 0:00:09]} Bf5 {[%emt 0:01:01]} 30. Bd3 {[%emt 0:00:36]} Bg7 {[%emt 0:00:46]} 0-1

[Event "ROU-ch Men 2018"]
[Site "Olanesti"]
[Date "2018.05.20"]
[Round "7"]
[White "Pop, Alexandru"]
[Black "Ciorgovean, Iustin"]
[Result "1/2-1/2"]
[ECO "E91"]
[WhiteElo "2302"]
[BlackElo "2169"]
[Annotator "ChessBase"]
[PlyCount "96"]
[EventDate "2018.??.??"]
[EventType "swiss"]
[EventCountry "ROU"]
[SourceTitle "playchess.com"]
[Source "ChessBase"]
[SourceQuality "1"]
[TimeControl "40/5400+30:1800+30"]

1. d4 {[%emt 0:00:34]} Nf6 {[%emt 0:00:06]} 2. c4 {[%emt 0:00:03]} g6 {[%emt 0:01:22]} 3. Nc3 {[%emt 0:00:07]} Bg7 {[%emt 0:00:05]} 4. e4 {[%emt 0:00:05]} O-O {[%emt 0:00:05]} 5. Nf3 {[%emt 0:00:04]} d6 {[%emt 0:00:04]} 6. Be2 {[%emt 0:00:06]} Na6 {[%emt 0:00:40]} 7. O-O {[%emt 0:00:21]} e5 {[%emt 0:00:05]} 8. Be3 {[%emt 0:00:10]} c6 {[%emt 0:00:20]} 9. d5 {[%emt 0:06:33]} Ng4 {[%emt 0:00:38]} 10. Bg5 {[%emt 0:00:07]} f6 {[%emt 0:00:12]} 11. Bh4 {[%emt 0:00:16]} c5 {[%emt 0:00:14]} 12. Ne1 {[%emt 0:01:07]} Nh6 {[%emt 0:02:42]} 13. f3 {[%emt 0:00:16]} g5 {[%emt 0:02:26]} 14. Bf2 {[%emt 0:00:05]} f5 {[%emt 0:00:07]} 15. Nd3 {[%emt 0:00:05]} f4 {[%emt 0:08:06]} 16. Rb1 {[%emt 0:00:27]} Nf7 {[%emt 0:09:58]} 17. b4 {[%emt 0:00:18]} cxb4 {[%emt 0:01:34]} 18. Nb5 {[%emt 0:00:12]} b6 {[%emt 0:10:52]} 19. Nxb4 {[%emt 0:00:11]} Nc5 {[%emt 0:01:42]} 20. Nc6 {[%emt 0:04:48]} Qd7 {[%emt 0:01:34]} 21. a4 {[%emt 0:01:22]} h5 {[%emt 0:00:56]} 22. a5 {[%emt 0:03:05]} Bf6 {[%emt 0:09:33]} 23. Ra1 {[%emt 0:02:07]} Ba6 {[%emt 0:04:25]} 24. Qc2 {[%emt 0:08:12]} g4 {[%emt 0:03:48]} 25. Rfb1 {[%emt 0:00:12]} Ng5 {[%emt 0:02:09]} 26. Nbxa7 {[%emt 0:08:41]} gxf3 {[%emt 0:12:22]} 27. Bxf3 {[%emt 0:00:33]} Nxf3+ {[%emt 0:02:17]} 28. gxf3 {[%emt 0:00:05]} Kh7 {[%emt 0:02:46]} 29. Bxc5 {[%emt 0:14:38]} Qh3 {[%emt 0:04:12]} 30. Ra3 {[%emt 0:00:25]} Rg8+ {[%emt 0:00:52]} 31. Kh1 {[%emt 0:00:12]} bxc5 {[%emt 0:01:23]} 32. Nb5 {[%emt 0:00:09]} Rg6 {[%emt 0:02:29]} 33. Qe2 {[%emt 0:00:19]} Rag8 {[%emt 0:00:59]} 34. Ra2 {[%emt 0:00:05]} Rg2 {[%emt 0:03:08]} 35. Qxg2 {[%emt 0:00:31]} Rxg2 {[%emt 0:00:05]} 36. Rxg2 {[%emt 0:00:05]} Qxf3 {[%emt 0:00:10]} 37. Nxd6 {[%emt 0:13:17]} h4 {[%emt 0:02:14]} 38. Kg1 {[%emt 0:12:33]} h3 {[%emt 0:00:18]} 39. Rf2 {[%emt 0:00:13]} Qe3 {[%emt 0:02:50]} 40. Kf1 {[%emt 0:00:00]} Bh4 {[%emt 0:00:51]} 41. Rfb2 {[%emt 0:06:57]} Qd3+ {[%emt 0:17:38]} 42. Kg1 {[%emt 0:00:11]} f3 {[%emt 0:01:54]} 43. Rb7+ {[%emt 0:00:07]} Bxb7 {[%emt 0:00:13]} 44. Rxb7+ {[%emt 0:00:05]} Kh6 {[%emt 0:02:11]} 45. Nf5+ {[%emt 0:00:13]} Kg5 {[%emt 0:00:45]} 46. Rg7+ {[%emt 0:00:05]} Kh5 {[%emt 0:03:08]} 47. Rh7+ {[%emt 0:00:11]} Kg5 {[%emt 0:00:37]} 48. Rg7+ Kh5 1/2-1/2

[Event "ROU-ch Men 2018"]
[Site "Olanesti"]
[Date "2018.05.20"]
[Round "7"]
[White "Pisu, Robert-Daniel"]
[Black "Stoleriu, George"]
[Result "0-1"]
[ECO "E11"]
[WhiteElo "2254"]
[BlackElo "2333"]
[Annotator "NA"]
[PlyCount "90"]
[EventDate "2018.??.??"]
[EventType "swiss"]
[EventCountry "ROU"]
[SourceTitle "playchess.com"]
[Source "ChessBase"]
[SourceQuality "1"]
[TimeControl "40/5400+30:1800+30"]

1. d4 {[%emt 0:00:00]} e6 {[%emt 0:00:04]} 2. Nf3 {[%emt 0:00:00]} Nf6 {[%emt 0:00:13]} 3. c4 {[%emt 0:00:26]} Bb4+ {[%emt 0:00:06]} 4. Nbd2 {[%emt 0:00:22]} b6 {[%emt 0:00:57]} 5. e3 {[%emt 0:00:24]} Bb7 {[%emt 0:00:17]} 6. Bd3 {[%emt 0:00:16]} O-O {[%emt 0:01:03]} 7. O-O {[%emt 0:00:12] LiveBook: 436 Games} Bxd2 {[%emt 0:01:57]} 8. Nxd2 {[%emt 0:00:35]} c5 {[%emt 0:01:57] E14: Queen's Indian: Classical Variation (4 e3)} (8... d6 9. b3 e5 10. Bb2 Qe7 11. Qc2 c5 12. d5 Nbd7 13. Rae1 Rae8 14. e4 Nh5 15. g3 g6 16. Kh1 {1-0 (36) Kosic,D (2517)-Milanovic,S (2395) Niksic 2016}) 9. b3 {[%emt 0:00:32]} cxd4 {[%emt 0:04:37]} 10. exd4 {[%emt 0:00:15]} d5 {[%emt 0:01:12]} 11. Bb2 {[%emt 0:00:47]} Nc6 {[%emt 0:02:44]} 12. Nf3 {[%emt 0:01:28]} Rc8 {[%emt 0:03:16]} 13. Rc1 {[%emt 0:08:19]} Re8 $146 {[%emt 0:12:28]} ({Predecessor:} 13... Qe7 14. Qe2 Rfd8 15. Rfd1 h6 16. Ne5 Nxe5 17. dxe5 {0-1 (31) Elguezabal Selioutin,D (1844)-Angelina Vela,C (2098) Collado Villalba 2017}) 14. Re1 {[%emt 0:06:37]} dxc4 {[%emt 0:15:17]} 15. bxc4 {[%emt 0:01:10]} Qd6 {[%emt 0:04:06]} 16. Bb1 {[%emt 0:21:06]} Red8 {[%emt 0:07:48]} 17. Qd3 {[%emt 0:11:52]} Nb4 {[%emt 0:07:20]} 18. Qb3 {[%emt 0:00:57]} Nc6 {[%emt 0:01:10]} 19. Qe3 {[%emt 0:09:07]} Na5 {[%emt 0:18:03]} 20. Ne5 {[%emt 0:02:42]} b5 {[%emt 0:01:17]} 21. c5 {[%emt 0:15:30]} Qd5 {[%emt 0:00:21]} 22. Qh3 {[%emt 0:00:12]} h6 {[%emt 0:01:00]} 23. Re3 {[%emt 0:01:42]} (23. f4 $16) 23... Nc6 {[%emt 0:01:19]} 24. Nxc6 {[%emt 0:03:06]} Bxc6 {[%emt 0:00:05]} 25. Re5 {[%emt 0:03:39]} Qd7 {[%emt 0:00:08]} 26. Rce1 {[%emt 0:01:04]} Qc7 {[%emt 0:03:51]} 27. Qh4 {[%emt 0:02:52]} Rd5 {[%emt 0:02:38]} 28. Rxd5 {[%emt 0:00:45]} Nxd5 {[%emt 0:00:14]} 29. Bc1 {[%emt 0:04:04]} Qe7 {[%emt 0:00:59]} 30. Qe4 {[%emt 0:01:33]} Nf6 {[%emt 0:00:04]} 31. Qh4 {[%emt 0:00:30]} Rd8 {[%emt 0:06:04]} 32. h3 {[%emt 0:01:16]} Kf8 {[%emt 0:02:37]} 33. Be3 {[%emt 0:01:47]} Ng8 {[%emt 0:01:11]} 34. Qf4 {[%emt 0:00:52]} Qb7 {[%emt 0:00:26]} 35. f3 {[%emt 0:00:19]} Nf6 {[%emt 0:00:16]} 36. Qh4 {[%emt 0:00:31]} Qe7 {[%emt 0:00:06]} 37. Bg5 $2 {[%emt 0:01:03]} (37. Bf2 $11) 37... hxg5 {[%emt 0:00:33]} 38. Qh8+ {[%emt 0:00:04]} Ng8 {[%emt 0:00:02]} 39. Bh7 {[%emt 0:00:04]} Qf6 {[%emt 0:00:25]} 40. Bxg8 {[%emt 0:00:00]} Qxd4+ {[%emt 0:00:31]} 41. Kh1 {[%emt 0:01:42]} Ke7 {[%emt 0:05:22]} 42. Qh7 {[%emt 0:04:31]} Qf6 {[%emt 0:03:12]} 43. Kg1 {[%emt 0:03:47]} Rd2 {[%emt 0:00:58]} 44. Qh5 {[%emt 0:00:50]} g6 {[%emt 0:00:41]} 45. Qg4 $19 {[%emt 0:00:30]} Qd4+ {[%emt 0:00:12]} 0-1

[Event "ROU-ch Men 2018"]
[Site "Olanesti"]
[Date "2018.05.20"]
[Round "7"]
[White "Vasilescu, Lucian-Mihail"]
[Black "Farcadi, Hunor"]
[Result "1-0"]
[ECO "A15"]
[WhiteElo "2243"]
[BlackElo "1959"]
[Annotator "NA"]
[PlyCount "39"]
[EventDate "2018.??.??"]
[EventType "swiss"]
[EventCountry "ROU"]
[SourceTitle "playchess.com"]
[Source "ChessBase"]
[SourceQuality "1"]
[TimeControl "40/5400+30:1800+30"]

1. c4 {[%emt 0:02:54]} Nf6 {[%emt 0:00:19]} 2. Nf3 {[%emt 0:00:13]} g6 {[%emt 0:00:12]} 3. Nc3 {[%emt 0:00:06]} Bg7 {[%emt 0:00:08]} 4. e4 {[%emt 0:00:05]} d6 {[%emt 0:00:06]} 5. d4 {[%emt 0:00:05]} O-O {[%emt 0:00:07]} 6. h3 {[%emt 0:00:04]} e5 {[%emt 0:00:07]} 7. dxe5 {[%emt 0:00:07]} dxe5 {[%emt 0:00:07]} 8. Qxd8 $11 {[%emt 0:00:04] LiveBook: 271 Games} ({Of course not} 8. Nxe5 Qxd1+ 9. Nxd1 Re8 $17) 8... Rxd8 {[%emt 0:00:05]} 9. Bg5 {[%emt 0:00:06]} Na6 {[%emt 0:00:06]} 10. Nd5 {[%emt 0:07:46]} Rd6 {[%emt 0:00:09]} 11. Bxf6 {[%emt 0:00:35]} Bxf6 {[%emt 0:00:05]} 12. O-O-O {[%emt 0:00:28]} Bg7 {[%emt 0:29:09]} 13. b4 {[%emt 0:16:02]} Bh6+ {[%emt 0:20:23]} 14. Kb2 {[%emt 0:04:02]} b6 {[%emt 0:10:00]} 15. c5 {[%emt 0:11:45]} bxc5 {[%emt 0:01:10]} 16. Ne7+ {[%emt 0:03:56]} Kf8 {[%emt 0:01:08]} 17. Rxd6 {[%emt 0:00:08]} Kxe7 {[%emt 0:01:53]} 18. Rxa6 {[%emt 0:00:40]} Bxa6 {[%emt 0:00:23]} 19. Bxa6 {[%emt 0:00:06]} cxb4 {[%emt 0:00:40]} 20. Rd1 {[%emt 0:02:04]} 1-0